[Event "23rd Hoogeveen Open 2019"]
[Site "Hoogeveen"]
[Date "2019.10.21"]
[Round "4.27"]
[White "Ypma, Jord"]
[Black "Nicolai, Amir"]
[Result "1-0"]
[ECO "A80"]
[WhiteElo "2013"]
[BlackElo "2117"]
[Annotator "NA"]
[PlyCount "107"]
[EventDate "2019.10.19"]
[EventType "swiss"]
[EventCountry "NED"]
[SourceTitle "playchess.com"]
[Source "ChessBase"]
[SourceQuality "1"]
[TimeControl "40/5400+30:1800+30"]

1. d4 {[%emt 0:01:01]} e6 {[%emt 0:00:00]} 2. Bf4 {[%emt 0:00:54]} f5 {[%emt 0:00:00]} 3. Nf3 {[%emt 0:00:26]} Nf6 {[%emt 0:00:11]} 4. e3 {[%emt 0:00:49]} b6 {[%emt 0:00:13]} 5. Nbd2 {[%emt 0:01:17]} Bb7 {[%emt 0:00:08]} 6. Be2 {[%emt 0:03:05]} Be7 {[%emt 0:00:14]} 7. h3 {[%emt 0:01:12]} O-O {[%emt 0:05:51]} 8. c3 {[%emt 0:04:07]} c5 {[%emt 0:01:41]} 9. Qc2 {[%emt 0:07:42]} Nc6 {[%emt 0:04:13]} 10. g4 {[%emt 0:00:27]} cxd4 {[%emt 0:02:16]} 11. exd4 {[%emt 0:04:18]} Nd5 {[%emt 0:04:31]} 12. Bg3 {[%emt 0:02:20]} f4 {[%emt 0:04:18]} 13. Bh2 {[%emt 0:00:22]} Rc8 {[%emt 0:08:06]} 14. O-O {[%emt 0:02:50]} Kh8 {[%emt 0:02:57]} 15. a3 {[%emt 0:01:42]} g5 {[%emt 0:09:02]} 16. Bd3 {[%emt 0:01:07]} Rf7 {[%emt 0:02:04]} 17. Rae1 {[%emt 0:04:49]} Rg7 {[%emt 0:06:57]} 18. Ne4 {[%emt 0:06:08]} Nf6 {[%emt 0:00:33]} 19. Qe2 {[%emt 0:06:07]} Ng8 {[%emt 0:02:32]} 20. Ne5 {[%emt 0:07:37]} Qc7 {[%emt 0:07:01]} 21. Nxc6 {[%emt 0:01:27]} Qxc6 {[%emt 0:00:15]} 22. f3 {[%emt 0:00:17]} Nf6 {[%emt 0:04:00]} 23. Kg2 {[%emt 0:03:08]} Nxe4 {[%emt 0:05:04]} 24. Bxe4 {[%emt 0:00:11]} Qc7 {[%emt 0:00:05]} 25. Bd3 {[%emt 0:03:25]} Bf6 {[%emt 0:00:47]} 26. Bg1 {[%emt 0:01:34]} Bd5 {[%emt 0:01:19]} 27. Bf2 {[%emt 0:03:37]} h5 {[%emt 0:07:13]} 28. Be4 {[%emt 0:06:56]} Qc4 {[%emt 0:04:01]} 29. Bd3 {[%emt 0:06:38]} Qb3 {[%emt 0:01:28]} 30. Rc1 {[%emt 0:01:41]} Bc4 {[%emt 0:01:39]} 31. Bxc4 {[%emt 0:01:13]} Rxc4 {[%emt 0:00:40]} 32. d5 {[%emt 0:03:23]} e5 {[%emt 0:02:46]} 33. gxh5 {[%emt 0:01:01]} Rh7 {[%emt 0:05:53]} 34. Qd3 {[%emt 0:01:12]} e4 {[%emt 0:02:05]} 35. fxe4 {[%emt 0:00:08]} Be5 {[%emt 0:03:46]} 36. Qe2 {[%emt 0:02:02]} Rg7 {[%emt 0:01:43]} 37. h6 {[%emt 0:02:56]} Rg6 {[%emt 0:01:40]} 38. Qg4 {[%emt 0:00:34]} Qxb2 {[%emt 0:00:30]} 39. Qf5 {[%emt 0:01:34]} f3+ {[%emt 0:00:55]} 40. Kh1 {[%emt 0:00:17]} Kh7 {[%emt 0:00:38]} 41. Qxe5 {[%emt 0:30:38]} g4 {[%emt 0:01:51]} 42. Qe7+ {[%emt 0:00:00]} Kh8 {[%emt 0:00:49]} 43. Qf8+ {[%emt 0:00:00]} Rg8 {[%emt 0:01:24]} 44. Qf6+ {[%emt 0:00:00]} Kh7 {[%emt 0:00:20]} 45. hxg4 {[%emt 0:00:00]} Qe2 {[%emt 0:00:46]} 46. Rce1 {[%emt 0:00:00]} Qd2 {[%emt 0:00:19]} 47. Qf5+ {[%emt 0:00:00]} Kh8 {[%emt 0:00:07]} 48. Qxf3 {[%emt 0:00:00]} Rxc3 {[%emt 0:00:32]} 49. Be3 {[%emt 0:00:00]} Qd3 {[%emt 0:00:40]} 50. g5 {[%emt 0:00:00]} Rxa3 {[%emt 0:01:46]} 51. Qf6+ {[%emt 0:00:00]} Kh7 {[%emt 0:00:06]} 52. g6+ {[%emt 0:00:00]} Rxg6 {[%emt 0:00:07]} 53. Qf7+ {[%emt 0:00:00]} Rg7 {[%emt 0:00:20]} 54. Qxg7# {[%emt 0:00:00]} 1-0

[Event "23rd Hoogeveen Open 2019"]
[Site "Hoogeveen"]
[Date "2019.10.21"]
[Round "4.28"]
[White "Elgersma, Simon"]
[Black "Hoffman, Ron"]
[Result "1-0"]
[ECO "B31"]
[WhiteElo "2111"]
[BlackElo "1991"]
[Annotator "NA"]
[PlyCount "81"]
[EventDate "2019.10.19"]
[EventType "swiss"]
[EventCountry "NED"]
[SourceTitle "playchess.com"]
[Source "ChessBase"]
[SourceQuality "1"]
[TimeControl "40/5400+30:1800+30"]

1. e4 {[%emt 0:00:00]} c5 {[%emt 0:01:33]} 2. Nf3 {[%emt 0:00:00]} Nc6 {[%emt 0:00:18]} 3. Bb5 {[%emt 0:00:06]} g6 {[%emt 0:00:05]} 4. O-O {[%emt 0:00:06]} Bg7 {[%emt 0:00:05]} 5. Re1 {[%emt 0:00:08]} e5 {[%emt 0:02:53]} 6. Bxc6 {[%emt 0:00:37]} dxc6 {[%emt 0:00:20]} 7. d3 {[%emt 0:00:51]} Qe7 {[%emt 0:00:43]} 8. a3 {[%emt 0:09:32]} Nf6 {[%emt 0:06:20]} 9. Nbd2 {[%emt 0:08:51]} Nd7 {[%emt 0:01:50]} 10. b4 {[%emt 0:04:41]} Nf8 {[%emt 0:09:22]} 11. Nc4 {[%emt 0:11:22]} f6 {[%emt 0:01:01]} 12. bxc5 {[%emt 0:06:53]} Qxc5 {[%emt 0:02:03]} 13. a4 {[%emt 0:08:01]} Qe7 {[%emt 0:01:02]} 14. Ba3 {[%emt 0:01:44]} c5 {[%emt 0:01:24]} 15. d4 {[%emt 0:03:20]} Ne6 {[%emt 0:07:18]} 16. dxc5 {[%emt 0:06:10]} O-O {[%emt 0:03:09]} 17. c6 {[%emt 0:05:15]} Qc7 {[%emt 0:01:07]} 18. Bxf8 {[%emt 0:02:10]} Bxf8 {[%emt 0:00:20]} 19. Qd5 {[%emt 0:09:28]} bxc6 {[%emt 0:09:43]} 20. Qd2 {[%emt 0:02:06]} Ba6 {[%emt 0:09:36]} 21. Qc3 {[%emt 0:01:17]} Rb8 {[%emt 0:03:37]} 22. Rab1 {[%emt 0:02:43]} Rd8 {[%emt 0:29:28]} 23. Red1 {[%emt 0:02:59]} Be7 {[%emt 0:01:30]} 24. Rxd8+ {[%emt 0:01:25]} Qxd8 {[%emt 0:01:07]} 25. Na5 {[%emt 0:03:29]} Bc5 {[%emt 0:03:13]} 26. Nb3 {[%emt 0:02:49]} Qb6 {[%emt 0:00:21]} 27. Qe1 {[%emt 0:01:27]} Nf4 {[%emt 0:03:10]} 28. a5 {[%emt 0:03:14]} Qb4 {[%emt 0:00:30]} 29. Qxb4 {[%emt 0:01:38]} Bxb4 {[%emt 0:00:01]} 30. Nc1 {[%emt 0:01:11]} Bc5 {[%emt 0:00:23]} 31. Ne1 {[%emt 0:00:54]} Bd4 {[%emt 0:00:52]} 32. Ned3 {[%emt 0:00:20]} Nxd3 {[%emt 0:00:42]} 33. Nxd3 {[%emt 0:00:22]} Kf7 {[%emt 0:00:25]} 34. Rb8 {[%emt 0:01:00]} Ke6 {[%emt 0:00:42]} 35. Nb4 {[%emt 0:00:26]} Bb5 {[%emt 0:00:34]} 36. c4 {[%emt 0:00:42]} Bxc4 {[%emt 0:00:27]} 37. Nxc6 {[%emt 0:00:10]} Bc3 {[%emt 0:00:38]} 38. Rc8 {[%emt 0:00:49]} Kd7 {[%emt 0:00:02]} 39. Nxa7 {[%emt 0:00:06]} Bd4 {[%emt 0:00:49]} 40. Rxc4 {[%emt 0:00:13]} Bxa7 {[%emt 0:00:04]} 41. Kf1 {[%emt 0:31:02]} 1-0

[Event "23rd Hoogeveen Open 2019"]
[Site "Hoogeveen"]
[Date "2019.10.21"]
[Round "4.30"]
[White "Faber, Hugo"]
[Black "Achuthan, Dylan"]
[Result "1/2-1/2"]
[ECO "B22"]
[WhiteElo "2077"]
[BlackElo "1865"]
[Annotator "NA RC"]
[PlyCount "40"]
[EventDate "2019.10.19"]
[EventType "swiss"]
[EventCountry "NED"]
[SourceTitle "playchess.com"]
[Source "ChessBase"]
[SourceQuality "1"]
[TimeControl "40/5400+30:1800+30"]

1. e4 {[%emt 0:00:00]} c5 {[%emt 0:00:00]} 2. c3 {[%emt 0:00:19]} d5 {[%emt 0:00:18]} 3. exd5 {[%emt 0:00:14]} Qxd5 {[%emt 0:00:02]} 4. d4 {[%emt 0:00:21]} Nc6 {[%emt 0:00:14]} 5. Nf3 {[%emt 0:00:36]} Bg4 {[%emt 0:00:09]} 6. Be2 {[%emt 0:00:56]} Nf6 {[%emt 0:01:15]} 7. O-O {[%emt 0:01:04]} e6 {[%emt 0:01:21]} 8. Be3 {[%emt 0:01:40]} cxd4 {[%emt 0:00:37]} 9. cxd4 {[%emt 0:00:15]} Be7 {[%emt 0:00:25]} 10. Nc3 {[%emt 0:00:30]} Qd8 {[%emt 0:00:09]} 11. Qb3 {[%emt 0:03:50]} Qc7 {[%emt 0:08:18]} 12. d5 {[%emt 0:04:15]} Nxd5 {[%emt 0:02:49]} 13. Nxd5 {[%emt 0:00:12]} exd5 {[%emt 0:00:07]} 14. Qxd5 {[%emt 0:00:06]} O-O {[%emt 0:00:09]} 15. h3 {[%emt 0:03:09]} Be6 {[%emt 0:00:39]} 16. Qe4 {[%emt 0:00:30]} Qa5 {[%emt 0:12:10]} 17. Nd4 {[%emt 0:05:02]} Nxd4 {[%emt 0:09:48]} 18. Bxd4 {[%emt 0:00:30]} b6 {[%emt 0:02:16]} 19. Rfd1 {[%emt 0:06:56]} Rfd8 {[%emt 0:07:39]} 20. Bf3 {[%emt 0:13:56]} Rac8 {[%emt 0:05:51]} 1/2-1/2

[Event "23rd Hoogeveen Open 2019"]
[Site "Hoogeveen"]
[Date "2019.10.21"]
[Round "4.31"]
[White "Stock, Andreas"]
[Black "Labruyere, Roger"]
[Result "1-0"]
[ECO "A28"]
[WhiteElo "2076"]
[BlackElo "1932"]
[Annotator "NA"]
[PlyCount "73"]
[EventDate "2019.10.19"]
[EventType "swiss"]
[EventCountry "NED"]
[SourceTitle "playchess.com"]
[Source "ChessBase"]
[SourceQuality "1"]
[TimeControl "40/5400+30:1800+30"]

1. c4 {[%emt 0:00:00]} e5 {[%emt 0:00:00]} 2. Nc3 {[%emt 0:00:00]} Nf6 {[%emt 0:00:00]} 3. Nf3 {[%emt 0:00:08]} Nc6 {[%emt 0:00:00]} 4. e4 {[%emt 0:00:26]} Bb4 {[%emt 0:02:17]} 5. d3 {[%emt 0:00:12]} a5 {[%emt 0:00:11]} 6. Be2 {[%emt 0:02:10]} O-O {[%emt 0:00:57]} 7. O-O {[%emt 0:00:06]} Re8 {[%emt 0:01:01]} 8. Ne1 {[%emt 0:04:08]} Bc5 {[%emt 0:00:56]} 9. Nc2 {[%emt 0:00:19]} h6 {[%emt 0:03:35]} 10. Be3 {[%emt 0:05:23]} Nd4 {[%emt 0:02:10]} 11. Qd2 {[%emt 0:04:58]} c6 {[%emt 0:01:29]} 12. Na4 {[%emt 0:13:13]} Nxe2+ {[%emt 0:01:06]} 13. Qxe2 {[%emt 0:00:00]} Bxe3 {[%emt 0:00:46]} 14. Nxe3 {[%emt 0:00:18]} d6 {[%emt 0:01:32]} 15. b3 {[%emt 0:10:31]} Nh7 {[%emt 0:02:23]} 16. f4 {[%emt 0:02:52]} Nf8 {[%emt 0:10:17]} 17. f5 {[%emt 0:00:23]} Nd7 {[%emt 0:05:10]} 18. Rf3 {[%emt 0:00:46]} Nf6 {[%emt 0:04:24]} 19. Nc3 {[%emt 0:01:15]} b6 {[%emt 0:03:10]} 20. Rg3 {[%emt 0:06:33]} Kh7 {[%emt 0:03:03]} 21. Rh3 {[%emt 0:06:07]} Bb7 {[%emt 0:02:36]} 22. g4 {[%emt 0:01:16]} Ng8 {[%emt 0:05:03]} 23. Rf1 {[%emt 0:03:50]} f6 {[%emt 0:02:49]} 24. Rg3 {[%emt 0:02:32]} Ne7 {[%emt 0:00:24]} 25. h4 {[%emt 0:02:37]} d5 {[%emt 0:01:14]} 26. Ncd1 {[%emt 0:02:20]} dxe4 {[%emt 0:01:40]} 27. dxe4 {[%emt 0:00:45]} Qd4 {[%emt 0:00:11]} 28. Nf2 {[%emt 0:01:08]} Rad8 {[%emt 0:06:11]} 29. g5 {[%emt 0:01:22]} Rg8 {[%emt 0:22:34]} 30. Qh5 {[%emt 0:02:22]} Rdf8 {[%emt 0:00:57]} 31. Rd1 {[%emt 0:00:45]} Qc5 {[%emt 0:00:49]} 32. Neg4 {[%emt 0:06:00]} fxg5 {[%emt 0:00:38]} 33. hxg5 {[%emt 0:01:02]} Rh8 {[%emt 0:04:56]} 34. gxh6 {[%emt 0:07:46]} g6 {[%emt 0:01:34]} 35. fxg6+ {[%emt 0:00:17]} Nxg6 {[%emt 0:00:03]} 36. Rd7+ {[%emt 0:00:31]} Ne7 {[%emt 0:00:18]} 37. Nf6+ {[%emt 0:02:03]} 1-0

[Event "23rd Hoogeveen Open 2019"]
[Site "Hoogeveen"]
[Date "2019.10.21"]
[Round "4.32"]
[White "Vogel, Jaap"]
[Black "Van der Veen, Jan"]
[Result "0-1"]
[ECO "D00"]
[WhiteElo "2123"]
[BlackElo "2043"]
[Annotator "NA"]
[PlyCount "110"]
[EventDate "2019.10.19"]
[EventType "swiss"]
[EventCountry "NED"]
[SourceTitle "playchess.com"]
[Source "ChessBase"]
[SourceQuality "1"]
[TimeControl "40/5400+30:1800+30"]

1. d4 {[%emt 0:00:00]} Nf6 {[%emt 0:03:07]} 2. Nf3 {[%emt 0:00:00]} g6 {[%emt 0:00:14]} 3. Bf4 {[%emt 0:00:26]} Bg7 {[%emt 0:00:18]} 4. Nc3 {[%emt 0:00:12]} d5 {[%emt 0:01:57]} 5. Nb5 {[%emt 0:03:32]} Na6 {[%emt 0:01:21]} 6. e3 {[%emt 0:00:57]} O-O {[%emt 0:07:43]} 7. h3 {[%emt 0:00:37]} c6 {[%emt 0:11:53]} 8. Nc3 {[%emt 0:00:51]} Nc7 {[%emt 0:01:14]} 9. Be2 {[%emt 0:01:29]} Nce8 {[%emt 0:01:18]} 10. Ne5 {[%emt 0:05:40]} Nd6 {[%emt 0:02:50]} 11. g4 {[%emt 0:05:29]} Nfe8 {[%emt 0:06:16]} 12. Bd3 {[%emt 0:43:12]} f6 {[%emt 0:20:33]} 13. Nf3 {[%emt 0:00:45]} Nf7 {[%emt 0:13:32]} 14. g5 {[%emt 0:11:07]} fxg5 {[%emt 0:06:33]} 15. Nxg5 {[%emt 0:00:16]} Nxg5 {[%emt 0:01:39]} 16. Bxg5 {[%emt 0:00:06]} Bf5 {[%emt 0:03:30]} 17. f4 {[%emt 0:03:07]} Nd6 {[%emt 0:01:06]} 18. Qd2 {[%emt 0:11:42]} Qd7 {[%emt 0:04:01]} 19. O-O-O {[%emt 0:01:10]} Bxd3 {[%emt 0:00:15]} 20. Qxd3 {[%emt 0:01:12]} Nf5 {[%emt 0:02:05]} 21. e4 {[%emt 0:02:44]} dxe4 {[%emt 0:00:14]} 22. Nxe4 {[%emt 0:01:09]} h6 {[%emt 0:02:37]} 23. Rhg1 {[%emt 0:01:45]} Kh7 {[%emt 0:02:15]} 24. h4 {[%emt 0:00:47]} Qxd4 {[%emt 0:00:18]} 25. Qxd4 {[%emt 0:02:58]} Bxd4 {[%emt 0:00:03]} 26. Rh1 {[%emt 0:00:29]} Kg7 {[%emt 0:01:16]} 27. Kb1 {[%emt 0:00:11]} hxg5 {[%emt 0:00:58]} 28. Nxg5 {[%emt 0:00:15]} Rf6 {[%emt 0:00:40]} 29. Rhe1 {[%emt 0:01:11]} Bb6 {[%emt 0:00:50]} 30. Rd7 {[%emt 0:00:18]} Re8 {[%emt 0:01:00]} 31. c4 {[%emt 0:01:01]} Kg8 {[%emt 0:00:50]} 32. Rxb7 {[%emt 0:00:34]} Nxh4 {[%emt 0:00:27]} 33. Ne6 {[%emt 0:00:27]} Bf2 {[%emt 0:01:30]} 34. Re2 {[%emt 0:00:28]} Bg1 {[%emt 0:01:01]} 35. Nc7 {[%emt 0:00:24]} Ref8 {[%emt 0:00:21]} 36. Ne6 {[%emt 0:00:33]} Rc8 {[%emt 0:01:00]} 37. Rxe7 {[%emt 0:00:09]} Nf5 {[%emt 0:00:11]} 38. Rd7 {[%emt 0:01:04]} Re8 {[%emt 0:00:25]} 39. Rg2 {[%emt 0:00:15]} Rfxe6 {[%emt 0:00:26]} 40. Rxg1 {[%emt 0:00:03]} Re1+ {[%emt 0:00:25]} 41. Rxe1 {[%emt 0:30:51]} Rxe1+ {[%emt 0:30:03]} 42. Kc2 {[%emt 0:00:05]} Re7 {[%emt 0:01:08]} 43. Rd8+ {[%emt 0:00:12]} Kf7 {[%emt 0:00:20]} 44. Rc8 {[%emt 0:00:05]} Nd4+ {[%emt 0:00:00]} 45. Kd3 {[%emt 0:00:00]} Ne2 {[%emt 0:00:00]} 46. Rxc6 {[%emt 0:00:00]} Nxf4+ {[%emt 0:00:00]} 47. Kd4 {[%emt 0:00:00]} Ne6+ {[%emt 0:00:00]} 48. Kd5 {[%emt 0:00:00]} g5 {[%emt 0:00:00]} 49. Kd6 {[%emt 0:00:00]} Ng7 {[%emt 0:00:00]} 50. Rc5 {[%emt 0:00:00]} Ne8+ {[%emt 0:00:00]} 51. Kd5 {[%emt 0:00:00]} g4 {[%emt 0:00:00]} 52. Ra5 {[%emt 0:00:00]} Kf6 {[%emt 0:00:00]} 53. c5 {[%emt 0:00:00]} g3 {[%emt 0:00:00]} 54. Ra3 {[%emt 0:00:00]} Re5+ {[%emt 0:00:00]} 55. Kd4 {[%emt 0:00:00]} g2 {[%emt 0:00:00]} 0-1

[Event "23rd Hoogeveen Open 2019"]
[Site "Hoogeveen"]
[Date "2019.10.21"]
[Round "4.33"]
[White "Van der Hagen, Loek"]
[Black "Shakhverdian, William"]
[Result "1-0"]
[ECO "C78"]
[WhiteElo "1983"]
[BlackElo "2109"]
[Annotator "NA"]
[PlyCount "111"]
[EventDate "2019.10.19"]
[EventType "swiss"]
[EventCountry "NED"]
[SourceTitle "playchess.com"]
[Source "ChessBase"]
[SourceQuality "1"]
[TimeControl "40/5400+30:1800+30"]

1. e4 {[%emt 0:00:00]} e5 {[%emt 0:00:00]} 2. Nf3 {[%emt 0:00:00]} Nc6 {[%emt 0:00:00]} 3. Bb5 {[%emt 0:00:00]} Nf6 {[%emt 0:00:01]} 4. d3 {[%emt 0:00:08]} Bc5 {[%emt 0:00:14]} 5. O-O {[%emt 0:00:27]} d6 {[%emt 0:00:27]} 6. c3 {[%emt 0:00:48]} a6 {[%emt 0:00:53]} 7. Ba4 {[%emt 0:00:09]} O-O {[%emt 0:00:54]} 8. h3 {[%emt 0:00:33]} b5 {[%emt 0:00:54]} 9. Bc2 {[%emt 0:00:26]} h6 {[%emt 0:00:06]} 10. Re1 {[%emt 0:01:03]} Re8 {[%emt 0:00:39]} 11. Nbd2 {[%emt 0:00:55]} d5 {[%emt 0:01:32]} 12. exd5 {[%emt 0:03:11]} Nxd5 {[%emt 0:00:40]} 13. Ne4 {[%emt 0:00:52]} Bf8 {[%emt 0:00:46]} 14. Ng3 {[%emt 0:07:01]} f5 {[%emt 0:04:18]} 15. Bd2 {[%emt 0:05:30]} Qd6 {[%emt 0:04:50]} 16. b4 {[%emt 0:04:55]} Bd7 {[%emt 0:01:41]} 17. a3 {[%emt 0:07:23]} Nf4 {[%emt 0:03:48]} 18. Be3 {[%emt 0:01:44]} Kh8 {[%emt 0:21:40]} 19. Qd2 {[%emt 0:04:46]} Nd5 {[%emt 0:01:35]} 20. Bc5 {[%emt 0:00:36]} Qf6 {[%emt 0:00:35]} 21. Bxf8 {[%emt 0:02:48]} Rxf8 {[%emt 0:00:52]} 22. c4 {[%emt 0:02:43]} Nb6 {[%emt 0:07:09]} 23. Bb3 {[%emt 0:03:31]} Be6 {[%emt 0:07:35]} 24. Qc3 {[%emt 0:03:55]} bxc4 {[%emt 0:02:16]} 25. dxc4 {[%emt 0:01:50]} e4 {[%emt 0:01:40]} 26. Qxf6 {[%emt 0:00:16]} Rxf6 {[%emt 0:00:13]} 27. Nd2 {[%emt 0:03:55]} Nd4 {[%emt 0:02:16]} 28. Rac1 {[%emt 0:09:11]} g6 {[%emt 0:02:05]} 29. Ba2 {[%emt 0:03:49]} c5 {[%emt 0:00:41]} 30. Red1 {[%emt 0:10:58]} Nc6 {[%emt 0:06:45]} 31. Ndxe4 {[%emt 0:04:40]} fxe4 {[%emt 0:00:09]} 32. Rd6 {[%emt 0:00:28]} Nd4 {[%emt 0:04:52]} 33. Rxb6 {[%emt 0:01:34]} Raf8 {[%emt 0:01:15]} 34. Rf1 {[%emt 0:05:26]} e3 {[%emt 0:05:40]} 35. fxe3 {[%emt 0:00:55]} Ne2+ {[%emt 0:01:51]} 36. Kh2 {[%emt 0:00:01]} Rxf1 {[%emt 0:00:18]} 37. Nxf1 {[%emt 0:00:14]} Rxf1 {[%emt 0:02:34]} 38. Rxe6 {[%emt 0:00:09]} h5 {[%emt 0:00:54]} 39. Rxg6 {[%emt 0:02:11]} Kh7 {[%emt 0:00:07]} 40. Rg5 {[%emt 0:00:42]} Kh6 {[%emt 0:00:53]} 41. h4 {[%emt 0:30:32]} Nc3 {[%emt 0:32:02]} 42. Bb3 {[%emt 0:02:17]} cxb4 {[%emt 0:00:09]} 43. axb4 {[%emt 0:00:35]} Ne4 {[%emt 0:00:22]} 44. Ra5 {[%emt 0:01:09]} Re1 {[%emt 0:01:04]} 45. Rxa6+ {[%emt 0:00:36]} Kg7 {[%emt 0:00:05]} 46. Ra2 {[%emt 0:07:36]} Rxe3 {[%emt 0:01:58]} 47. Bd1 {[%emt 0:00:00]} Nf6 {[%emt 0:00:00]} 48. Bf3 {[%emt 0:00:00]} Rc3 {[%emt 0:00:00]} 49. Ra7+ {[%emt 0:00:00]} Kg6 {[%emt 0:00:00]} 50. Rc7 {[%emt 0:00:00]} Kf5 {[%emt 0:00:00]} 51. b5 {[%emt 0:00:00]} Ng4+ {[%emt 0:00:00]} 52. Bxg4+ {[%emt 0:00:00]} Kxg4 {[%emt 0:00:00]} 53. b6 {[%emt 0:00:00]} Kxh4 {[%emt 0:00:00]} 54. b7 {[%emt 0:00:00]} Rb3 {[%emt 0:00:00]} 55. c5 {[%emt 0:00:00]} Rb2 {[%emt 0:00:00]} 56. c6 {[%emt 0:00:00]} 1-0

[Event "23rd Hoogeveen Open 2019"]
[Site "Hoogeveen"]
[Date "2019.10.21"]
[Round "4.34"]
[White "Ricken, Katharina"]
[Black "Taams, Sander"]
[Result "1-0"]
[ECO "E60"]
[WhiteElo "1970"]
[BlackElo "2094"]
[Annotator "NA RC"]
[PlyCount "85"]
[EventDate "2019.10.19"]
[EventType "swiss"]
[EventCountry "NED"]
[SourceTitle "playchess.com"]
[Source "ChessBase"]
[SourceQuality "1"]
[TimeControl "40/5400+30:1800+30"]

1. Nf3 {[%emt 0:00:00]} Nf6 {[%emt 0:00:00]} 2. g3 {[%emt 0:00:00]} g6 {[%emt 0:00:00]} 3. b3 {[%emt 0:00:00]} Bg7 {[%emt 0:00:00]} 4. Bb2 {[%emt 0:00:00]} d6 {[%emt 0:00:32]} 5. d4 {[%emt 0:00:00]} O-O {[%emt 0:01:18]} 6. Bg2 {[%emt 0:00:00]} c5 {[%emt 0:00:47]} 7. c4 {[%emt 0:00:00]} Nc6 {[%emt 0:00:43]} 8. O-O {[%emt 0:00:10]} a6 {[%emt 0:00:53]} 9. dxc5 {[%emt 0:00:18]} dxc5 {[%emt 0:00:17]} 10. Ne5 {[%emt 0:00:06]} Nxe5 {[%emt 0:06:59]} 11. Bxe5 {[%emt 0:00:08]} Nh5 {[%emt 0:00:40]} 12. Bxg7 {[%emt 0:00:10]} Nxg7 {[%emt 0:00:16]} 13. Nc3 {[%emt 0:00:15]} Rb8 {[%emt 0:01:32]} 14. Qxd8 {[%emt 0:00:35]} Rxd8 {[%emt 0:00:13]} 15. Rfd1 {[%emt 0:00:12]} Rd5 {[%emt 0:04:32]} 16. Rd2 Rxd2 {[%emt 0:00:30]} 17. Rc1 {[%emt 0:00:54]} Rd1+ 18. Rxd1 {[%emt 0:01:01]} Be6 {[%emt 0:02:50]} 19. Bxb7 {[%emt 0:04:31]} Rxb7 {[%emt 0:03:58]} 20. Rd8+ {[%emt 0:00:09]} Ne8 {[%emt 0:00:04]} 21. Rxe8+ {[%emt 0:00:05]} Kg7 {[%emt 0:00:02]} 22. Ra8 {[%emt 0:12:38]} Rb6 {[%emt 0:01:16]} 23. Ra7 {[%emt 0:01:24]} Kf8 {[%emt 0:01:21]} 24. Rc7 {[%emt 0:00:15]} Rd6 {[%emt 0:00:58]} 25. Rxc5 {[%emt 0:01:54]} Rd2 {[%emt 0:00:12]} 26. Ra5 {[%emt 0:04:53]} Bh3 {[%emt 0:01:45]} 27. f3 {[%emt 0:06:18]} Rc2 {[%emt 0:05:41]} 28. Nd5 {[%emt 0:02:42]} Rc1+ {[%emt 0:02:24]} 29. Kf2 {[%emt 0:01:28]} Rh1 {[%emt 0:00:08]} 30. Rxa6 {[%emt 0:01:40]} Rxh2+ {[%emt 0:00:12]} 31. Ke3 {[%emt 0:01:23]} Bf1 {[%emt 0:00:09]} 32. Nc3 {[%emt 0:00:44]} h5 {[%emt 0:00:20]} 33. b4 {[%emt 0:01:03]} Rg2 {[%emt 0:00:17]} 34. b5 {[%emt 0:00:42]} Ke8 {[%emt 0:00:15]} 35. c5 {[%emt 0:00:54]} Rxg3 {[%emt 0:00:07]} 36. Kf2 {[%emt 0:00:36]} h4 {[%emt 0:00:06]} 37. Kxf1 {[%emt 0:00:14]} h3 {[%emt 0:00:06]} 38. c6 {[%emt 0:00:49]} e6 {[%emt 0:00:26]} 39. Ne4 {[%emt 0:00:20]} Rg2 {[%emt 0:00:58]} 40. Ra8+ {[%emt 0:00:15]} Ke7 {[%emt 0:00:08]} 41. c7 {[%emt 0:30:06]} f5 {[%emt 0:30:10]} 42. Nf2 {[%emt 0:00:22]} h2 {[%emt 0:00:38]} 43. Kxg2 {[%emt 0:00:06]} 1-0

[Event "23rd Hoogeveen Open 2019"]
[Site "Hoogeveen"]
[Date "2019.10.21"]
[Round "4.35"]
[White "Vasse, Albert"]
[Black "Pekin, Tolgay"]
[Result "0-1"]
[ECO "B22"]
[WhiteElo "1934"]
[BlackElo "2083"]
[Annotator "NA"]
[PlyCount "98"]
[EventDate "2019.10.19"]
[EventType "swiss"]
[EventCountry "NED"]
[SourceTitle "playchess.com"]
[Source "ChessBase"]
[SourceQuality "1"]
[TimeControl "40/5400+30:1800+30"]

1. e4 {[%emt 0:00:00]} c5 {[%emt 0:00:19]} 2. d4 {[%emt 0:00:00]} cxd4 {[%emt 0:00:08]} 3. c3 {[%emt 0:00:00]} Nf6 {[%emt 0:00:09]} 4. e5 {[%emt 0:00:05]} Nd5 {[%emt 0:00:03]} 5. cxd4 {[%emt 0:00:08]} e6 {[%emt 0:00:08]} 6. Bc4 {[%emt 0:02:19]} Nb6 {[%emt 0:04:21]} 7. Bb3 {[%emt 0:00:54]} d6 {[%emt 0:02:07]} 8. Qe2 {[%emt 0:04:35]} Be7 {[%emt 0:07:19]} 9. Qg4 {[%emt 0:04:43]} dxe5 {[%emt 0:03:51]} 10. dxe5 {[%emt 0:03:12]} Qc7 {[%emt 0:00:15]} 11. Qf4 {[%emt 0:08:23]} g5 {[%emt 0:11:06]} 12. Qe3 {[%emt 0:03:00]} Nc6 {[%emt 0:01:48]} 13. Nc3 {[%emt 0:05:51]} Qxe5 {[%emt 0:02:36]} 14. Nf3 {[%emt 0:01:54]} Qxe3+ {[%emt 0:03:13]} 15. Bxe3 {[%emt 0:00:11]} g4 {[%emt 0:18:23]} 16. Nd2 {[%emt 0:02:46]} Nd7 {[%emt 0:09:20]} 17. Nb5 {[%emt 0:07:28]} Bd8 {[%emt 0:11:15]} 18. Nd6+ {[%emt 0:02:29]} Ke7 {[%emt 0:00:43]} 19. N6e4 {[%emt 0:00:55]} Bb6 {[%emt 0:01:20]} 20. O-O {[%emt 0:06:45]} Bxe3 {[%emt 0:03:49]} 21. fxe3 {[%emt 0:00:12]} b6 {[%emt 0:01:29]} 22. Rac1 {[%emt 0:02:03]} Bb7 {[%emt 0:01:00]} 23. Nc4 {[%emt 0:03:58]} Na5 {[%emt 0:02:34]} 24. Ned6 {[%emt 0:02:17]} Nxc4 {[%emt 0:01:22]} 25. Nxc4 {[%emt 0:03:25]} Nc5 {[%emt 0:02:52]} 26. Bd1 {[%emt 0:00:42]} Rhg8 {[%emt 0:01:33]} 27. Ne5 {[%emt 0:01:38]} f6 {[%emt 0:02:08]} 28. b4 {[%emt 0:00:34]} Na6 {[%emt 0:01:38]} 29. Nd3 {[%emt 0:00:34]} Rac8 {[%emt 0:01:15]} 30. Be2 {[%emt 0:02:45]} Nc7 {[%emt 0:00:55]} 31. a3 {[%emt 0:05:28]} Nd5 {[%emt 0:01:08]} 32. Rxc8 {[%emt 0:01:07]} Rxc8 {[%emt 0:01:49]} 33. e4 {[%emt 0:01:44]} Ne3 {[%emt 0:00:55]} 34. Rf4 {[%emt 0:00:35]} Rc2 {[%emt 0:00:51]} 35. Kf2 {[%emt 0:02:46]} e5 {[%emt 0:00:47]} 36. Kxe3 {[%emt 0:00:36]} exf4+ {[%emt 0:00:17]} 37. Nxf4 {[%emt 0:00:14]} g3 {[%emt 0:00:33]} 38. hxg3 {[%emt 0:00:19]} Rc3+ {[%emt 0:00:13]} 39. Kd4 {[%emt 0:00:23]} Rxa3 {[%emt 0:01:35]} 40. Bf3 {[%emt 0:01:22]} a5 {[%emt 0:01:49]} 41. bxa5 {[%emt 0:34:26]} bxa5 {[%emt 0:01:28]} 42. Nd3 {[%emt 0:00:00]} Ra4+ {[%emt 0:03:05]} 43. Ke3 {[%emt 0:00:00]} Rc4 {[%emt 0:03:14]} 44. Nf4 {[%emt 0:00:00]} a4 {[%emt 0:04:18]} 45. Kd3 {[%emt 0:00:00]} Rc7 {[%emt 0:01:34]} 46. Bd1 {[%emt 0:00:00]} Rd7+ {[%emt 0:01:21]} 47. Nd5+ {[%emt 0:00:00]} Bxd5 {[%emt 0:00:14]} 48. exd5 {[%emt 0:00:00]} Rxd5+ {[%emt 0:00:07]} 49. Kc2 {[%emt 0:00:00]} Rxd1 {[%emt 0:00:01] Kd3} 0-1